[Event "Titled Tuesday Blitz October 31 Early 2023"]
[White "Dodaro, Mattia"]
[Black "FoxOnTheRun97"]
[WhiteFideId "28583400"]
[WhiteElo "2251"]
[BlackElo "2606"]
[Result "0-1"]
[Round "1"]
[TimeControl "180+1"]
[Date "2023.10.31"]
[WhiteClock "0:00:03"]
[BlackClock "0:00:07"]
[Board "154"]

1. Nf3 {[%clk 0:02:57]}  Nf6 {[%clk 0:02:59]} 2. c4 {[%clk 0:02:57]}  e6 {[%clk 0:02:59]} 3. g3 {[%clk 0:02:57]}  d5 {[%clk 0:03:00]} 4. Bg2 {[%clk 0:02:58]}  Be7 {[%clk 0:03:00]} 5. O-O {[%clk 0:02:57]}  O-O {[%clk 0:03:01]} 6. e3 {[%clk 0:02:58]}  b6 {[%clk 0:02:57]} 7. b3 {[%clk 0:02:58]}  Bb7 {[%clk 0:02:57]} 8. Bb2 {[%clk 0:02:58]}  dxc4 {[%clk 0:02:55]} 9. bxc4 {[%clk 0:02:58]}  c5 {[%clk 0:02:55]} 10. Qe2 {[%clk 0:02:58]}  Nc6 {[%clk 0:02:50]} 11. d4 {[%clk 0:02:58]}  cxd4 {[%clk 0:02:47]} 12. exd4 {[%clk 0:02:59]}  Rc8 {[%clk 0:02:43]} 13. Rd1 {[%clk 0:02:54]}  Na5 {[%clk 0:02:41]} 14. Nbd2 {[%clk 0:02:53]}  Ba6 {[%clk 0:02:37]} 15. Rac1 {[%clk 0:02:52]}  Qc7 {[%clk 0:02:28]} 16. Ne5 {[%clk 0:02:51]}  Nd7 {[%clk 0:02:22]} 17. Nxd7 {[%clk 0:02:29]}  Qxd7 {[%clk 0:02:23]} 18. Qg4 {[%clk 0:01:35]}  f5 {[%clk 0:02:04]} 19. Qe2 {[%clk 0:01:31]}  Bb4 {[%clk 0:01:35]} 20. d5 {[%clk 0:01:26]}  exd5 {[%clk 0:01:21]} 21. Qe5 {[%clk 0:01:15]}  dxc4 {[%clk 0:01:09]} 22. Nxc4 {[%clk 0:00:59]}  Qe7 {[%clk 0:00:50]} 23. Qd5+ {[%clk 0:00:37]}  Kh8 {[%clk 0:00:49]} 24. Nxa5 {[%clk 0:00:37]}  bxa5 {[%clk 0:00:42]} 25. Rxc8 {[%clk 0:00:20]}  Bxc8 {[%clk 0:00:43]} 26. Be5 {[%clk 0:00:14]}  Be6 {[%clk 0:00:37]} 27. Qd4 {[%clk 0:00:10]}  Bxa2 {[%clk 0:00:26]} 28. h4 {[%clk 0:00:11]}  Bb3 {[%clk 0:00:23]} 29. Rb1 {[%clk 0:00:10]}  Be6 {[%clk 0:00:22]} 30. h5 {[%clk 0:00:10]}  h6 {[%clk 0:00:21]} 31. Qe3 {[%clk 0:00:11]}  Kh7 {[%clk 0:00:21]} 32. Bf1 {[%clk 0:00:08]}  Bc5 {[%clk 0:00:20]} 33. Qf4 {[%clk 0:00:08]}  a4 {[%clk 0:00:18]} 34. Bg2 {[%clk 0:00:07]}  a3 {[%clk 0:00:18]} 35. Rb7 {[%clk 0:00:08]}  Qxb7 {[%clk 0:00:07]} 36. Bxb7 {[%clk 0:00:08]}  a2 {[%clk 0:00:07]} 37. Kg2 {[%clk 0:00:07]}  Be7 {[%clk 0:00:07]} 38. Bb2 {[%clk 0:00:06]}  Bf6 {[%clk 0:00:07]} 39. Bxf6 {[%clk 0:00:06]}  Rxf6 {[%clk 0:00:07]} 40. Qe5 {[%clk 0:00:06]}  Rf7 {[%clk 0:00:07]} 41. Bf3 {[%clk 0:00:06]}  Bc4 {[%clk 0:00:06]} 42. Bd1 {[%clk 0:00:06]}  Rd7 {[%clk 0:00:06]} 43. Bc2 {[%clk 0:00:06]}  Kg8 {[%clk 0:00:05]} 44. Bxf5 {[%clk 0:00:06]}  Bd5+ {[%clk 0:00:05]} 45. Kh2 {[%clk 0:00:06]}  Rd8 {[%clk 0:00:06]} 46. Be6+ {[%clk 0:00:05]}  Bxe6 {[%clk 0:00:06]} 47. Qxe6+ {[%clk 0:00:06]}  Kh8 {[%clk 0:00:06]} 48. Qxa2 {[%clk 0:00:07]}  Rd7 {[%clk 0:00:06]} 49. Qe6 {[%clk 0:00:07]}  Rc7 {[%clk 0:00:06]} 50. Qd6 {[%clk 0:00:07]}  Rf7 {[%clk 0:00:06]} 51. Kg2 {[%clk 0:00:05]}  Kh7 {[%clk 0:00:06]} 52. Qg6+ {[%clk 0:00:05]}  Kg8 {[%clk 0:00:06]} 53. Qe6 {[%clk 0:00:06]}  Kf8 {[%clk 0:00:06]} 54. Qc8+ {[%clk 0:00:05]}  Ke7 {[%clk 0:00:06]} 55. Qb8 {[%clk 0:00:04]}  Kf6 {[%clk 0:00:07]} 56. Qb5 {[%clk 0:00:04]}  Re7 {[%clk 0:00:07]} 57. Qa6+ {[%clk 0:00:03]}  Kf7 {[%clk 0:00:07]} 58. Qg6+ {[%clk 0:00:03]}  Kf8 {[%clk 0:00:07]} 59. Kf3 {[%clk 0:00:03]}  Rf7+ {[%clk 0:00:06]} 60. Ke4 {[%clk 0:00:03]}  Rf6 {[%clk 0:00:06]} 61. Qh7 {[%clk 0:00:03]}  a6 {[%clk 0:00:06]} 62. f4 {[%clk 0:00:03]}  Kf7 {[%clk 0:00:06]} 63. Qh8 {[%clk 0:00:03]}  Re6+ {[%clk 0:00:06]} 64. Kf5 {[%clk 0:00:04]}  Re8 {[%clk 0:00:07]} 65. Kg4 {[%clk 0:00:04]}  Rxh8 {[%clk 0:00:07]} 66. Kf5 {[%clk 0:00:03]}  Re8 {[%clk 0:00:07]} 0-1


[Site "https://www.chess.com"]

[Event "Titled Tuesday Blitz October 31 Early 2023"]
[White "Leyva Proenza, Richard"]
[Black "Akylbek2021"]
[WhiteFideId "3500985"]
[WhiteElo "2605"]
[BlackElo "2249"]
[Result "1-0"]
[Round "1"]
[TimeControl "180+1"]
[Date "2023.10.31"]
[WhiteClock "0:01:34"]
[BlackClock "0:00:00"]
[Board "155"]

1. e4 {[%clk 0:03:00]}  e5 {[%clk 0:02:58]} 2. d4 {[%clk 0:02:58]}  exd4 {[%clk 0:02:53]} 3. Qxd4 {[%clk 0:02:59]}  Nc6 {[%clk 0:02:54]} 4. Qe3 {[%clk 0:02:59]}  g6 {[%clk 0:02:50]} 5. Nc3 {[%clk 0:02:58]}  Bg7 {[%clk 0:02:51]} 6. Bc4 {[%clk 0:02:56]}  Nf6 {[%clk 0:02:51]} 7. e5 {[%clk 0:02:34]}  Ng8 {[%clk 0:01:58]} 8. Bd2 {[%clk 0:02:21]}  Nge7 {[%clk 0:01:53]} 9. f4 {[%clk 0:02:21]}  O-O {[%clk 0:01:44]} 10. O-O-O {[%clk 0:02:21]}  a6 {[%clk 0:01:40]} 11. Nf3 {[%clk 0:02:20]}  b5 {[%clk 0:01:40]} 12. Bb3 {[%clk 0:02:20]}  Rb8 {[%clk 0:01:30]} 13. h4 {[%clk 0:02:18]}  a5 {[%clk 0:01:16]} 14. a4 {[%clk 0:02:02]}  bxa4 {[%clk 0:01:11]} 15. Nxa4 {[%clk 0:01:59]}  Nb4 {[%clk 0:00:42]} 16. Bc3 {[%clk 0:01:51]}  Ba6 {[%clk 0:00:27]} 17. h5 {[%clk 0:01:44]}  c6 {[%clk 0:00:20]} 18. hxg6 {[%clk 0:01:43]}  hxg6 {[%clk 0:00:16]} 19. Ng5 {[%clk 0:01:43]}  Nbd5 {[%clk 0:00:15]} 20. Rh8+ {[%clk 0:01:35]}  Bxh8 {[%clk 0:00:00]} 21. Qh3 {[%clk 0:01:34]} 1-0


[Site "https://www.chess.com"]

[Event "Titled Tuesday Blitz October 31 Early 2023"]
[White "Ruge, Edison"]
[Black "Ergali_Suleimen"]
[WhiteFideId "4401000"]
[WhiteElo "2246"]
[BlackElo "2604"]
[Result "0-1"]
[Round "1"]
[TimeControl "180+1"]
[Date "2023.10.31"]
[WhiteClock "0:00:00"]
[BlackClock "0:00:21"]
[Board "156"]

1. e4 {[%clk 0:02:49]}  c5 {[%clk 0:03:00]} 2. Nf3 {[%clk 0:02:49]}  Nc6 {[%clk 0:02:59]} 3. d3 {[%clk 0:02:50]}  g6 {[%clk 0:02:59]} 4. Nbd2 {[%clk 0:02:51]}  Bg7 {[%clk 0:02:59]} 5. g3 {[%clk 0:02:50]}  e6 {[%clk 0:02:59]} 6. Bg2 {[%clk 0:02:51]}  Nge7 {[%clk 0:02:59]} 7. h4 {[%clk 0:02:51]}  h6 {[%clk 0:02:59]} 8. h5 {[%clk 0:02:49]}  g5 {[%clk 0:02:59]} 9. O-O {[%clk 0:02:50]}  O-O {[%clk 0:02:58]} 10. Nh2 {[%clk 0:02:50]}  f5 {[%clk 0:02:53]} 11. c3 {[%clk 0:02:39]}  d5 {[%clk 0:02:52]} 12. Qe2 {[%clk 0:02:35]}  Kh8 {[%clk 0:02:45]} 13. f4 {[%clk 0:02:13]}  g4 {[%clk 0:02:44]} 14. e5 {[%clk 0:02:03]}  Qe8 {[%clk 0:02:41]} 15. Nb3 {[%clk 0:02:03]}  b6 {[%clk 0:02:41]} 16. c4 {[%clk 0:01:56]}  d4 {[%clk 0:02:34]} 17. Kf2 {[%clk 0:01:55]}  Qxh5 {[%clk 0:02:33]} 18. Rh1 {[%clk 0:01:56]}  Qg6 {[%clk 0:02:29]} 19. Nf1 {[%clk 0:01:51]}  Bb7 {[%clk 0:02:28]} 20. a3 {[%clk 0:01:49]}  a5 {[%clk 0:02:26]} 21. Bd2 {[%clk 0:01:39]}  a4 {[%clk 0:02:23]} 22. Nc1 {[%clk 0:01:32]}  Na5 {[%clk 0:02:23]} 23. Bxb7 {[%clk 0:01:28]}  Nxb7 {[%clk 0:02:23]} 24. Rh4 {[%clk 0:01:21]}  Qe8 {[%clk 0:02:23]} 25. Na2 {[%clk 0:01:14]}  Qc6 {[%clk 0:02:20]} 26. Nh2 {[%clk 0:01:14]}  Na5 {[%clk 0:02:07]} 27. Bxa5 {[%clk 0:01:10]}  Rxa5 {[%clk 0:02:01]} 28. Rg1 {[%clk 0:01:11]}  b5 {[%clk 0:01:59]} 29. Nf1 {[%clk 0:01:07]}  bxc4 {[%clk 0:01:54]} 30. dxc4 {[%clk 0:01:06]}  Ra7 {[%clk 0:01:50]} 31. Nc1 {[%clk 0:01:03]}  Rb7 {[%clk 0:01:44]} 32. Nd3 {[%clk 0:01:04]}  Nc8 {[%clk 0:01:29]} 33. Rgh1 {[%clk 0:01:03]}  Nb6 {[%clk 0:01:28]} 34. Nd2 {[%clk 0:00:59]}  Kh7 {[%clk 0:01:18]} 35. Kf1 {[%clk 0:00:55]}  Nc8 {[%clk 0:01:07]} 36. Qh2 {[%clk 0:00:54]}  Kg8 {[%clk 0:00:57]} 37. Rxh6 {[%clk 0:00:52]}  Bxh6 {[%clk 0:00:58]} 38. Qxh6 {[%clk 0:00:52]}  Rg7 {[%clk 0:00:55]} 39. Rh5 {[%clk 0:00:36]}  Ne7 {[%clk 0:00:49]} 40. Rg5 {[%clk 0:00:28]}  Rf7 {[%clk 0:00:49]} 41. Rh5 {[%clk 0:00:23]}  Rh7 {[%clk 0:00:46]} 42. Qg5+ {[%clk 0:00:20]}  Rfg7 {[%clk 0:00:43]} 43. Qh4 {[%clk 0:00:20]}  Rxh5 {[%clk 0:00:42]} 44. Qxh5 {[%clk 0:00:20]}  Rh7 {[%clk 0:00:37]} 45. Qg5+ {[%clk 0:00:19]}  Kf7 {[%clk 0:00:35]} 46. Nf2 {[%clk 0:00:16]}  Rg7 {[%clk 0:00:29]} 47. Qf6+ {[%clk 0:00:15]}  Kg8 {[%clk 0:00:30]} 48. Qh6 {[%clk 0:00:14]}  Qb6 {[%clk 0:00:28]} 49. Nd3 {[%clk 0:00:12]}  Qc6 {[%clk 0:00:28]} 50. Nf2 {[%clk 0:00:11]}  Rg6 {[%clk 0:00:28]} 51. Qh4 {[%clk 0:00:10]}  Kf7 {[%clk 0:00:27]} 52. Qh7+ {[%clk 0:00:07]}  Ke8 {[%clk 0:00:27]} 53. Qh5 {[%clk 0:00:07]}  Kd7 {[%clk 0:00:27]} 54. Qh8 {[%clk 0:00:05]}  Rg8 {[%clk 0:00:26]} 55. Qh7 {[%clk 0:00:04]}  Qa8 {[%clk 0:00:24]} 56. Nd3 {[%clk 0:00:04]}  Qc8 {[%clk 0:00:21]} 57. Qf7 {[%clk 0:00:02]}  Rf8 {[%clk 0:00:20]} 58. Qh7 {[%clk 0:00:02]}  Rh8 {[%clk 0:00:20]} 59. Qg6 {[%clk 0:00:00]}  Rh1+ {[%clk 0:00:21]} 0-1


[Site "https://www.chess.com"]

[Event "Titled Tuesday Blitz October 31 Early 2023"]
[White "Bodnaruk, Anastasia"]
[Black "Topalov, Aleksandar"]
[WhiteFideId "4181751"]
[BlackFideId "925659"]
[WhiteElo "2599"]
[BlackElo "2230"]
[Result "1-0"]
[Round "1"]
[TimeControl "180+1"]
[Date "2023.10.31"]
[WhiteClock "0:01:19"]
[BlackClock "0:00:01"]
[Board "159"]

1. e4 {[%clk 0:02:58]}  e6 {[%clk 0:02:59]} 2. d4 {[%clk 0:02:57]}  d5 {[%clk 0:02:55]} 3. Nc3 {[%clk 0:02:57]}  Bb4 {[%clk 0:02:54]} 4. e5 {[%clk 0:02:57]}  Qd7 {[%clk 0:02:50]} 5. h4 {[%clk 0:02:50]}  h5 {[%clk 0:02:48]} 6. Nf3 {[%clk 0:02:48]}  b6 {[%clk 0:02:47]} 7. Bd3 {[%clk 0:02:21]}  Ba6 {[%clk 0:02:45]} 8. O-O {[%clk 0:02:21]}  Bxd3 {[%clk 0:02:45]} 9. Qxd3 {[%clk 0:02:20]}  Nh6 {[%clk 0:02:30]} 10. Bxh6 {[%clk 0:02:15]}  Rxh6 {[%clk 0:02:29]} 11. Ne2 {[%clk 0:02:15]}  Be7 {[%clk 0:02:24]} 12. c4 {[%clk 0:02:08]}  c6 {[%clk 0:01:41]} 13. Rac1 {[%clk 0:02:05]}  a5 {[%clk 0:01:21]} 14. Nf4 {[%clk 0:01:58]}  Na6 {[%clk 0:01:14]} 15. cxd5 {[%clk 0:01:53]}  cxd5 {[%clk 0:01:12]} 16. Rc3 {[%clk 0:01:46]}  Nb4 {[%clk 0:01:03]} 17. Qb1 {[%clk 0:01:39]}  Rc8 {[%clk 0:00:19]} 18. Rfc1 {[%clk 0:01:36]}  Rc6 {[%clk 0:00:15]} 19. a3 {[%clk 0:01:34]}  Rxc3 {[%clk 0:00:14]} 20. bxc3 {[%clk 0:01:34]}  Nc6 {[%clk 0:00:13]} 21. Qxb6 {[%clk 0:01:34]}  Bxa3 {[%clk 0:00:12]} 22. Rb1 {[%clk 0:01:33]}  Be7 {[%clk 0:00:11]} 23. Nd3 {[%clk 0:01:28]}  f6 {[%clk 0:00:10]} 24. Nc5 {[%clk 0:01:25]}  Bxc5 {[%clk 0:00:09]} 25. Qxc5 {[%clk 0:01:26]}  fxe5 {[%clk 0:00:09]} 26. Rb6 {[%clk 0:01:21]}  Ne7 {[%clk 0:00:01]} 27. Rb8+ {[%clk 0:01:19]} 1-0


[Site "https://www.chess.com"]

[Event "Titled Tuesday Blitz October 31 Early 2023"]
[White "StiffMaster1"]
[Black "Mora Moron, Jose Ramon"]
[BlackFideId "3902994"]
[WhiteElo "2597"]
[BlackElo "2226"]
[Result "0-1"]
[Round "1"]
[TimeControl "180+1"]
[Date "2023.10.31"]
[WhiteClock "0:00:00"]
[BlackClock "0:01:08"]
[Board "161"]

1. e4 {[%clk 0:02:16]}  c5 {[%clk 0:02:59]} 2. Nf3 {[%clk 0:02:15]}  e6 {[%clk 0:02:59]} 3. d4 {[%clk 0:02:16]}  cxd4 {[%clk 0:02:59]} 4. Nxd4 {[%clk 0:02:15]}  Nc6 {[%clk 0:02:59]} 5. Nc3 {[%clk 0:02:16]}  Qc7 {[%clk 0:02:59]} 6. f4 {[%clk 0:01:58]}  a6 {[%clk 0:02:58]} 7. Be3 {[%clk 0:01:52]}  b5 {[%clk 0:02:58]} 8. a3 {[%clk 0:01:31]}  Bb7 {[%clk 0:02:56]} 9. Qf3 {[%clk 0:01:27]}  f5 {[%clk 0:02:50]} 10. O-O-O {[%clk 0:01:12]}  Nf6 {[%clk 0:02:46]} 11. Bd3 {[%clk 0:01:03]}  b4 {[%clk 0:02:43]} 12. axb4 {[%clk 0:01:02]}  Bxb4 {[%clk 0:02:43]} 13. Nd5 {[%clk 0:00:40]}  exd5 {[%clk 0:02:32]} 14. exd5 {[%clk 0:00:36]}  Nxd4 {[%clk 0:02:29]} 15. Bxd4 {[%clk 0:00:37]}  Bxd5 {[%clk 0:02:23]} 16. Qe3+ {[%clk 0:00:35]}  Ne4 {[%clk 0:02:03]} 17. Bxg7 {[%clk 0:00:30]}  Rg8 {[%clk 0:02:03]} 18. Be5 {[%clk 0:00:30]}  Qa5 {[%clk 0:02:02]} 19. c3 {[%clk 0:00:17]}  Qa1+ {[%clk 0:01:53]} 20. Bb1 {[%clk 0:00:18]}  Ba2 {[%clk 0:01:47]} 21. Qd3 {[%clk 0:00:16]}  Qxb1+ {[%clk 0:01:46]} 22. Qxb1 {[%clk 0:00:16]}  Bxb1 {[%clk 0:01:46]} 23. Kxb1 {[%clk 0:00:16]}  Bc5 {[%clk 0:01:40]} 24. g3 {[%clk 0:00:16]}  Nf2 {[%clk 0:01:39]} 25. Rhe1 {[%clk 0:00:14]}  Nxd1 {[%clk 0:01:38]} 26. Bd4+ {[%clk 0:00:11]}  Kd8 {[%clk 0:01:37]} 27. Bxc5 {[%clk 0:00:11]}  Nxc3+ {[%clk 0:01:37]} 28. bxc3 {[%clk 0:00:09]}  Rb8+ {[%clk 0:01:37]} 29. Kc2 {[%clk 0:00:08]}  Re8 {[%clk 0:01:37]} 30. Ra1 {[%clk 0:00:07]}  Re6 {[%clk 0:01:36]} 31. Bd4 {[%clk 0:00:06]}  Ke7 {[%clk 0:01:31]} 32. Ra5 {[%clk 0:00:05]}  Rb5 {[%clk 0:01:31]} 33. Ra1 {[%clk 0:00:04]}  Rc6 {[%clk 0:01:28]} 34. Kd3 {[%clk 0:00:04]}  h5 {[%clk 0:01:25]} 35. Re1+ {[%clk 0:00:05]}  Kf7 {[%clk 0:01:24]} 36. Ra1 {[%clk 0:00:05]}  Rb2 {[%clk 0:01:24]} 37. Bg1 {[%clk 0:00:04]}  Rg2 {[%clk 0:01:14]} 38. Bd4 {[%clk 0:00:02]}  Rxh2 {[%clk 0:01:13]} 39. Ra5 {[%clk 0:00:02]}  Kg6 {[%clk 0:01:11]} 40. Rd5 {[%clk 0:00:02]}  d6 {[%clk 0:01:09]} 41. c4 {[%clk 0:00:01]}  Rh3 {[%clk 0:01:08]} 42. Bf2 {[%clk 0:00:00]}  h4 {[%clk 0:01:08]} 0-1


[Site "https://www.chess.com"]

[Event "Titled Tuesday Blitz October 31 Early 2023"]
[White "Tharushi, T H D Niklesha"]
[Black "Manukyan, Sargis A."]
[WhiteFideId "9918264"]
[BlackFideId "13303970"]
[WhiteElo "2224"]
[BlackElo "2595"]
[Result "0-1"]
[Round "1"]
[TimeControl "180+1"]
[Date "2023.10.31"]
[WhiteClock "0:00:13"]
[BlackClock "0:00:31"]
[Board "162"]

1. d4 {[%clk 0:02:58]}  d5 {[%clk 0:02:57]} 2. c4 {[%clk 0:02:58]}  e6 {[%clk 0:02:58]} 3. Nc3 {[%clk 0:02:57]}  Nf6 {[%clk 0:02:57]} 4. cxd5 {[%clk 0:02:57]}  Nxd5 {[%clk 0:02:56]} 5. e4 {[%clk 0:02:55]}  Nxc3 {[%clk 0:02:56]} 6. bxc3 {[%clk 0:02:55]}  c5 {[%clk 0:02:57]} 7. Nf3 {[%clk 0:02:54]}  cxd4 {[%clk 0:02:57]} 8. cxd4 {[%clk 0:02:54]}  Nc6 {[%clk 0:02:57]} 9. Bc4 {[%clk 0:02:46]}  Bb4+ {[%clk 0:02:56]} 10. Bd2 {[%clk 0:02:46]}  Bxd2+ {[%clk 0:02:55]} 11. Qxd2 {[%clk 0:02:45]}  O-O {[%clk 0:02:56]} 12. O-O {[%clk 0:02:45]}  Qa5 {[%clk 0:02:56]} 13. Rfd1 {[%clk 0:02:37]}  Qxd2 {[%clk 0:02:52]} 14. Rxd2 {[%clk 0:02:37]}  Na5 {[%clk 0:02:53]} 15. Be2 {[%clk 0:02:35]}  b6 {[%clk 0:02:53]} 16. Ne1 {[%clk 0:02:02]}  Bb7 {[%clk 0:02:53]} 17. f3 {[%clk 0:02:02]}  Rac8 {[%clk 0:02:52]} 18. Kf2 {[%clk 0:01:57]}  Rc7 {[%clk 0:02:52]} 19. Ke3 {[%clk 0:01:55]}  Rfc8 {[%clk 0:02:52]} 20. f4 {[%clk 0:01:42]}  Kf8 {[%clk 0:02:52]} 21. Nf3 {[%clk 0:01:42]}  Ke7 {[%clk 0:02:52]} 22. Rad1 {[%clk 0:01:37]}  Rc3+ {[%clk 0:02:51]} 23. Rd3 {[%clk 0:01:23]}  Ba6 {[%clk 0:02:50]} 24. Rxc3 {[%clk 0:01:16]}  Rxc3+ {[%clk 0:02:51]} 25. Kf2 {[%clk 0:01:16]}  Bxe2 {[%clk 0:02:45]} 26. Kxe2 {[%clk 0:01:16]}  Nc4 {[%clk 0:02:44]} 27. Nd2 {[%clk 0:01:11]}  Rc2 {[%clk 0:02:09]} 28. Kd3 {[%clk 0:01:11]}  Rxd2+ {[%clk 0:02:10]} 29. Rxd2 {[%clk 0:01:10]}  Nxd2 {[%clk 0:02:11]} 30. Kxd2 {[%clk 0:01:10]}  f5 {[%clk 0:02:11]} 31. e5 {[%clk 0:00:58]}  Kd7 {[%clk 0:02:11]} 32. Kd3 {[%clk 0:00:58]}  Kc6 {[%clk 0:02:11]} 33. Kc4 {[%clk 0:00:58]}  b5+ {[%clk 0:02:11]} 34. Kb4 {[%clk 0:00:58]}  Kb6 {[%clk 0:02:11]} 35. a3 {[%clk 0:00:51]}  a5+ {[%clk 0:02:11]} 36. Kb3 {[%clk 0:00:49]}  Kc6 {[%clk 0:02:11]} 37. a4 {[%clk 0:00:50]}  h6 {[%clk 0:01:30]} 38. g3 {[%clk 0:00:36]}  g5 {[%clk 0:01:20]} 39. h3 {[%clk 0:00:36]}  g4 {[%clk 0:00:31]} 40. hxg4 {[%clk 0:00:20]}  fxg4 {[%clk 0:00:31]} 41. axb5+ {[%clk 0:00:20]}  Kxb5 {[%clk 0:00:31]} 42. f5 {[%clk 0:00:20]}  exf5 {[%clk 0:00:30]} 43. d5 {[%clk 0:00:20]}  Kc5 {[%clk 0:00:30]} 44. e6 {[%clk 0:00:19]}  Kd6 {[%clk 0:00:28]} 45. Ka4 {[%clk 0:00:18]}  f4 {[%clk 0:00:28]} 46. gxf4 {[%clk 0:00:18]}  g3 {[%clk 0:00:29]} 47. f5 {[%clk 0:00:17]}  g2 {[%clk 0:00:29]} 48. f6 {[%clk 0:00:17]}  g1=Q {[%clk 0:00:30]} 49. f7 {[%clk 0:00:17]}  Qd4+ {[%clk 0:00:30]} 50. Kxa5 {[%clk 0:00:16]}  Qxd5+ {[%clk 0:00:30]} 51. Ka6 {[%clk 0:00:16]}  Ke7 {[%clk 0:00:30]} 52. Ka7 {[%clk 0:00:15]}  Qxe6 {[%clk 0:00:30]} 53. Kb8 {[%clk 0:00:13]}  Kxf7 {[%clk 0:00:31]} 0-1


[Site "https://www.chess.com"]

[Event "Titled Tuesday Blitz October 31 Early 2023"]
[White "Kiseljova, Marya"]
[Black "Tifferet, Shaked"]
[WhiteFideId "4155009"]
[BlackFideId "2811529"]
[WhiteElo "2205"]
[BlackElo "2592"]
[Result "1-0"]
[Round "1"]
[TimeControl "180+1"]
[Date "2023.10.31"]
[WhiteClock "0:01:08"]
[BlackClock "0:02:10"]
[Board "164"]

1. d4 {[%clk 0:03:00]}  b6 {[%clk 0:02:59]} 2. c4 {[%clk 0:02:58]}  Bb7 {[%clk 0:02:59]} 3. Nf3 {[%clk 0:02:58]}  e6 {[%clk 0:02:59]} 4. g3 {[%clk 0:02:58]}  f5 {[%clk 0:02:59]} 5. Bg2 {[%clk 0:02:57]}  Bb4+ {[%clk 0:02:59]} 6. Nbd2 {[%clk 0:02:56]}  Nf6 {[%clk 0:02:58]} 7. O-O {[%clk 0:02:56]}  O-O {[%clk 0:02:58]} 8. Qc2 {[%clk 0:02:54]}  Ne4 {[%clk 0:02:54]} 9. a3 {[%clk 0:02:52]}  Be7 {[%clk 0:02:51]} 10. b4 {[%clk 0:02:50]}  a5 {[%clk 0:02:48]} 11. b5 {[%clk 0:02:49]}  Nxd2 {[%clk 0:02:41]} 12. Nxd2 {[%clk 0:02:47]}  Bxg2 {[%clk 0:02:41]} 13. Kxg2 {[%clk 0:02:48]}  d6 {[%clk 0:02:29]} 14. e4 {[%clk 0:02:47]}  f4 {[%clk 0:02:27]} 15. f3 {[%clk 0:02:34]}  Nd7 {[%clk 0:02:23]} 16. Nb3 {[%clk 0:02:23]}  e5 {[%clk 0:02:21]} 17. c5 {[%clk 0:02:16]}  a4 {[%clk 0:02:15]} 18. Nd2 {[%clk 0:02:09]}  bxc5 {[%clk 0:02:15]} 19. dxc5 {[%clk 0:02:06]}  Nxc5 {[%clk 0:02:16]} 20. Nc4 {[%clk 0:01:55]}  Kh8 {[%clk 0:02:15]} 21. Bd2 {[%clk 0:01:45]}  Nb3 {[%clk 0:02:14]} 22. Rab1 {[%clk 0:01:40]}  fxg3 {[%clk 0:02:11]} 23. hxg3 {[%clk 0:01:38]}  Bg5 {[%clk 0:02:12]} 24. Bxg5 {[%clk 0:01:31]}  Qxg5 {[%clk 0:02:13]} 25. Rh1 {[%clk 0:01:08]}  Nd4 {[%clk 0:02:10]} 1-0


[Site "https://www.chess.com"]

[Event "Titled Tuesday Blitz October 31 Early 2023"]
[White "Jia, Haoxiang"]
[Black "Mirzanurov, Bulat"]
[WhiteFideId "8602999"]
[BlackFideId "4184521"]
[WhiteElo "2589"]
[BlackElo "2189"]
[Result "1-0"]
[Round "1"]
[TimeControl "180+1"]
[Date "2023.10.31"]
[WhiteClock "0:00:34"]
[BlackClock "0:00:00"]
[Board "167"]

1. d4 {[%clk 0:02:55]}  d5 {[%clk 0:02:58]} 2. Bf4 {[%clk 0:02:54]}  Nf6 {[%clk 0:02:57]} 3. Nf3 {[%clk 0:02:54]}  c5 {[%clk 0:02:52]} 4. dxc5 {[%clk 0:02:50]}  e6 {[%clk 0:02:37]} 5. e3 {[%clk 0:02:28]}  Bxc5 {[%clk 0:02:34]} 6. c4 {[%clk 0:02:27]}  Nc6 {[%clk 0:02:29]} 7. Nc3 {[%clk 0:02:07]}  O-O {[%clk 0:02:06]} 8. cxd5 {[%clk 0:02:01]}  exd5 {[%clk 0:02:02]} 9. Be2 {[%clk 0:01:59]}  Bg4 {[%clk 0:02:00]} 10. O-O {[%clk 0:01:56]}  Qd7 {[%clk 0:01:32]} 11. h3 {[%clk 0:01:55]}  Bxf3 {[%clk 0:01:14]} 12. Bxf3 {[%clk 0:01:55]}  d4 {[%clk 0:01:14]} 13. Na4 {[%clk 0:01:48]}  Bd6 {[%clk 0:00:39]} 14. Bxc6 {[%clk 0:01:29]}  Qxc6 {[%clk 0:00:34]} 15. Qxd4 {[%clk 0:01:27]}  Bxf4 {[%clk 0:00:32]} 16. Qxf4 {[%clk 0:01:25]}  Rfe8 {[%clk 0:00:30]} 17. Rac1 {[%clk 0:01:24]}  Qb5 {[%clk 0:00:28]} 18. Rc5 {[%clk 0:01:17]}  Qd3 {[%clk 0:00:27]} 19. Nc3 {[%clk 0:01:09]}  Rad8 {[%clk 0:00:22]} 20. Rd1 {[%clk 0:01:03]}  Qc2 {[%clk 0:00:22]} 21. Rxd8 {[%clk 0:01:02]}  Rxd8 {[%clk 0:00:23]} 22. Qc7 {[%clk 0:00:56]}  Rf8 {[%clk 0:00:20]} 23. Qxb7 {[%clk 0:00:51]}  h6 {[%clk 0:00:19]} 24. Rc8 {[%clk 0:00:51]}  Qc1+ {[%clk 0:00:16]} 25. Kh2 {[%clk 0:00:51]}  Rxc8 {[%clk 0:00:16]} 26. Qxc8+ {[%clk 0:00:51]}  Kh7 {[%clk 0:00:17]} 27. Qf5+ {[%clk 0:00:49]}  Kh8 {[%clk 0:00:17]} 28. Qb5 {[%clk 0:00:46]}  Qd2 {[%clk 0:00:16]} 29. Qe2 {[%clk 0:00:46]}  Qd6+ {[%clk 0:00:15]} 30. g3 {[%clk 0:00:46]}  Qb4 {[%clk 0:00:14]} 31. a3 {[%clk 0:00:46]}  Qc5 {[%clk 0:00:12]} 32. Qb5 {[%clk 0:00:45]}  Qd6 {[%clk 0:00:12]} 33. Qe2 {[%clk 0:00:36]}  h5 {[%clk 0:00:11]} 34. e4 {[%clk 0:00:36]}  Qe5 {[%clk 0:00:08]} 35. f4 {[%clk 0:00:36]}  Qc5 {[%clk 0:00:08]} 36. e5 {[%clk 0:00:37]}  Nh7 {[%clk 0:00:06]} 37. Ne4 {[%clk 0:00:35]}  Qd4 {[%clk 0:00:06]} 38. Nd6 {[%clk 0:00:34]}  f6 {[%clk 0:00:05]} 39. e6 {[%clk 0:00:33]}  Qxd6 {[%clk 0:00:00]} 40. e7 {[%clk 0:00:34]} 1-0


[Site "https://www.chess.com"]